bitfinex/quotes_ETHUSD_20250630
["timestamp","ask_amount","ask_price","bid_price","bid_amount"]
[1751312013713,0.8283,2513.9,2513.8,0.1984]
[1751312014282,3.97750837,2514.2,2513.8,0.1984]
[1751312014488,0.7799,2514.3,2513.6,0.4847]
[1751312014689,0.7799,2514.3,2514.1,0.1984]
[1751312015301,3.97694376,2514.5,2514.1,4.17587687]
[1751312015502,3.97694376,2514.5,2514.4,0.1984]
[1751312016906,4.73904432,2514.6,2514.4,0.1984]
[1751312017114,4.73897567,2514.6,2514.4,0.1984]
[1751312018011,3.97693378,2514.5,2514.4,0.1984]
[1751312018208,4.84852473,2514.5,2514.4,0.1984]
[1751312018427,3.97732443,2514.3,2513.9,6.77]
[1751312018718,3.97732443,2514.3,2514.2,0.1984]
[1751312019028,4.84856097,2514.5,2514.2,0.1984]
[1751312019399,0.87159095,2514.5,2514.2,0.1984]
[1751312019613,0.7622,2514.6,2514.2,0.1984]
[1751312020008,4.73899562,2514.6,2514.2,0.1984]
[1751312020188,0.7622,2514.6,2514.2,4.17578105]
[1751312020391,0.7622,2514.6,2514.2,0.1984]
[1751312020631,0.7622,2514.6,2514.3,3.97722842]
[1751312020988,0.7622,2514.6,2514.2,0.1984]
[1751312021186,6.44789162,2514.6,2514.2,0.1984]
[1751312021424,2.47111566,2514.6,2514.2,4.17580792]
[1751312021826,0.7622,2514.6,2514.0,6.768]
[1751312022124,3.97608312,2515.1,2514.0,6.768]
[1751312022125,4.76646127,2515.1,2514.6,3.97662051]
[1751312022327,3.97622346,2515.0,2514.5,0.1984]
[1751312022623,4.76646127,2515.1,2514.7,0.1984]
[1751312022624,0.7904,2515.1,2514.7,0.1984]
[1751312022825,3.97614695,2515.0,2514.7,0.1984]
[1751312023028,0.89408339,2515.0,2514.7,0.1984]
[1751312023192,3.97654971,2514.8,2514.4,6.767]
[1751312023392,4.17462903,2515.0,2514.5,4.17525558]
[1751312023617,3.97622903,2515.0,2514.5,3.97685558]
[1751312023929,3.9762085,2515.0,2514.4,6.767]
[1751312024105,3.97646075,2514.8,2514.6,0.1984]
[1751312024438,4.79156767,2514.8,2514.6,0.1984]
[1751312025451,3.97661748,2514.7,2514.6,0.1984]
[1751312025722,4.73971748,2514.7,2514.6,0.1984]
[1751312026131,4.73971748,2514.7,2514.4,0.1984]
[1751312026302,0.7631,2514.7,2514.4,0.1984]
[1751312026834,4.73975253,2514.7,2514.4,0.1984]
[1751312027426,3.97685882,2514.6,2514.4,0.1984]
[1751312027625,3.97693378,2514.5,2514.4,0.1984]
[1751312028015,3.97725993,2514.3,2514.0,6.764]
[1751312028222,3.97725993,2514.3,2514.2,0.1984]
[1751312028609,0.7655,2514.2,2513.6,5.14497177]
[1751312028939,3.9777994,2514.0,2513.9,0.1984]
[1751312029140,3.9777994,2514.0,2513.5,6.764]
[1751312029141,3.97797565,2513.9,2513.5,6.764]
[1751312029308,3.97797565,2513.9,2513.7,0.1984]
[1751312029636,3.97804121,2513.8,2513.4,5.14527889]
[1751312029804,3.97804121,2513.8,2513.6,0.1984]
[1751312030225,3.9778923,2513.9,2513.6,0.1984]
[1751312030226,3.97796678,2513.9,2513.6,0.1984]
[1751312030442,3.978049,2513.8,2513.6,0.1984]
[1751312030637,4.47196462,2514.0,2513.6,0.1984]
[1751312030638,3.9779353,2513.9,2513.6,0.1984]
[1751312030950,4.4719897,2514.0,2513.6,0.1984]
[1751312031135,3.97790547,2513.9,2513.6,0.1984]
[1751312031339,2.9105,2514.2,2513.5,3.9784844]
[1751312031505,8.49131997,2514.2,2513.8,0.1984]
[1751312031909,3.97757616,2514.1,2513.8,0.1984]
[1751312032244,3.97756652,2514.1,2513.8,0.1984]
[1751312032435,4.51384986,2514.2,2513.8,4.17637532]
[1751312032936,3.97710442,2514.4,2513.8,3.97796311]
[1751312033113,3.97710442,2514.4,2514.1,0.1984]
[1751312033308,0.7904,2514.5,2514.2,3.97739057]
[1751312033632,10.7904,2514.5,2514.3,0.1984]
[1751312034037,0.7904,2514.5,2514.3,0.1984]
[1751312034813,1.62702134,2514.7,2514.3,4.17563595]
[1751312035125,5.60373488,2514.7,2514.3,0.1984]
[1751312035312,1.95942368,2514.6,2514.3,4.17563401]
[1751312035513,1.95942368,2514.6,2514.3,0.1984]
[1751312035724,5.93622648,2514.6,2514.3,0.1984]
[1751312036546,5.93627105,2514.6,2514.3,0.1984]
[1751312036748,3.97694948,2514.5,2514.3,0.1984]
[1751312037050,5.13097367,2514.5,2514.3,0.1984]
[1751312037939,1.15402419,2514.5,2514.3,0.1984]
[1751312038649,5.13098446,2514.5,2514.3,0.1984]
[1751312039151,1.15402419,2514.5,2514.3,0.1984]
[1751312039347,0.37246728,2514.4,2514.3,0.1984]
[1751312040718,0.37246728,2514.4,2513.8,0.4847]
[1751312040719,1.11874578,2514.4,2513.8,0.4847]
[1751312041045,3.97772474,2514.0,2513.9,0.1984]
[1751312041244,3.97772474,2514.0,2513.5,3.97844157]
[1751312041547,3.97765248,2514.1,2513.7,0.1984]
[1751312041747,0.1984,2514.2,2513.7,4.17652029]
[1751312041748,4.17590123,2514.2,2513.7,4.17652029]
[1751312041922,0.89128074,2514.1,2513.7,4.17652029]
[1751312042121,4.86886285,2514.1,2513.7,0.1984]
[1751312042331,4.86886285,2514.1,2513.7,4.17659123]
[1751312042672,0.1984,2514.2,2513.8,3.97789307]
[1751312042827,4.73692256,2514.3,2514.0,0.1984]
[1751312043030,0.7596,2514.3,2514.0,0.1984]
[1751312043358,1.0286,2514.5,2514.2,3.97730963]
[1751312043654,3.97686537,2514.6,2514.2,0.1984]
[1751312043861,0.81518853,2514.5,2514.2,0.1984]
[1751312044056,0.81518853,2514.5,2514.2,4.17577418]
[1751312044568,0.81518853,2514.5,2514.2,0.1984]
[1751312045264,4.79219256,2514.5,2514.2,0.1984]
[1751312045469,0.81518853,2514.5,2514.2,0.1984]
[1751312045634,4.79212863,2514.5,2514.2,0.1984]
[1751312045838,0.81518853,2514.5,2514.2,0.1984]
[1751312046150,4.79213571,2514.5,2514.2,0.1984]
[1751312046356,1.47921357,2514.4,2514.2,0.1984]
[1751312046556,10.0,2514.6,2514.2,4.17573501]
[1751312046872,10.0,2514.6,2514.3,3.97722789]
[1751312047036,4.17511795,2514.7,2514.3,3.97722789]
[1751312047237,4.17511795,2514.7,2514.2,4.17574214]
[1751312047671,4.17511795,2514.7,2514.2,4.17574114]
[1751312047872,0.1984,2514.7,2514.2,4.17575934]
[1751312048170,1.1894281,2515.1,2514.6,0.1984]
[1751312048171,4.73455137,2515.1,2514.6,0.1984]
[1751312048372,0.7585,2515.1,2514.8,4.17479057]
[1751312048542,8.12594861,2515.4,2514.9,3.97619327]
[1751312048743,4.1503281,2515.4,2514.8,0.4847]
[1751312049048,2.9609,2515.4,2515.1,0.1984]
[1751312049248,0.31593,2515.3,2515.1,0.1984]
[1751312049962,4.29167439,2515.3,2515.1,0.1984]
[1751312050169,3.97582697,2515.2,2515.1,0.1984]
[1751312050374,3.97616379,2515.0,2514.8,0.1984]
[1751312050571,0.31593,2515.3,2514.4,0.4847]
[1751312050741,0.31593,2515.3,2514.6,0.1984]
[1751312050742,3.97653739,2514.8,2514.6,0.1984]
[1751312050941,3.97661748,2514.7,2514.6,0.1984]
[1751312051251,3.97661748,2514.7,2514.0,0.4847]
[1751312051252,3.97686009,2514.6,2514.0,0.4847]
[1751312051567,4.37417851,2514.8,2514.4,0.1984]
[1751312052067,0.39765374,2514.8,2514.4,0.1984]
[1751312052434,5.48108312,2515.3,2514.6,3.97664421]
[1751312052435,3.97607148,2515.1,2514.6,3.97664421]
[1751312052640,1.0282,2515.2,2514.7,0.1984]
[1751312052939,1.0282,2515.2,2514.5,7.2377]
[1751312052940,4.29160429,2515.3,2515.0,0.1984]
[1751312053140,0.31593,2515.3,2515.0,0.1984]
[1751312053844,0.31593,2515.3,2515.0,4.17453954]
[1751312054044,0.8298,2515.4,2514.5,7.2377]
[1751312054254,3.97577522,2515.3,2515.2,0.1984]
[1751312054450,0.8298,2515.4,2515.2,0.1984]
[1751312055172,4.80531109,2515.4,2515.2,0.1984]
[1751312055356,0.1984,2515.6,2515.2,0.1984]
[1751312055556,3.9754883,2515.5,2515.2,0.1984]
[1751312056373,5.94502463,2515.6,2515.2,0.1984]
[1751312056374,3.9756689,2515.3,2515.2,0.1984]
[1751312056539,0.8176,2515.3,2514.9,0.1984]
[1751312056740,3.97654192,2514.8,2514.6,0.1984]
[1751312057142,3.97661748,2514.7,2514.6,0.1984]
[1751312057370,4.77193342,2514.7,2514.6,0.1984]
[1751312057748,3.97723749,2514.4,2514.0,1.16661735]
[1751312057984,0.7941,2514.6,2514.3,0.1984]
[1751312058340,3.97693378,2514.5,2514.3,0.1984]
[1751312058766,3.97709195,2514.4,2514.3,0.1984]
[1751312058941,4.8519047,2514.4,2514.1,0.1984]
[1751312059381,3.97725123,2514.3,2514.1,0.1984]
[1751312059563,4.85197805,2514.4,2514.1,0.1984]
[1751312060274,3.97726933,2514.3,2514.1,0.1984]
[1751312060670,3.97704742,2514.5,2514.1,0.1984]
[1751312060846,3.97704742,2514.5,2514.1,0.6831]
[1751312061469,3.97711853,2514.4,2514.1,0.6831]
[1751312061678,3.97701504,2514.5,2514.1,0.6831]
[1751312061874,3.97715549,2514.4,2514.1,0.6831]
[1751312062074,3.97740832,2514.2,2514.1,0.1984]
[1751312062669,3.97771517,2514.1,2513.7,1.65131735]
[1751312062879,3.97740832,2514.2,2513.8,0.1984]
[1751312063179,3.97788297,2513.9,2513.8,0.1984]
[1751312063381,3.97780756,2514.0,2513.8,0.1984]
[1751312063550,3.97804121,2513.8,2513.7,1.16661735]
[1751312063879,3.97819946,2513.7,2513.6,1.36501735]
[1751312064044,3.97819946,2513.7,2513.4,1.54491897]
[1751312064045,3.97835773,2513.6,2513.5,1.16661735]
[1751312064480,3.97827592,2513.7,2513.5,1.16661735]
[1751312064679,3.97827592,2513.7,2513.5,1.36501735]
[1751312064879,5.58509084,2513.6,2513.5,1.16661735]
[1751312065282,5.58509084,2513.6,2513.4,1.16661735]
[1751312065983,3.97830636,2513.7,2513.5,1.16661735]
[1751312066355,3.97835773,2513.6,2513.5,1.16661735]
[1751312066560,3.97851601,2513.5,2513.4,0.1984]
[1751312067153,3.97841991,2513.6,2513.4,0.1984]
[1751312067355,3.97835955,2513.6,2513.4,0.1984]
[1751312067679,0.1984,2513.9,2513.4,0.1984]
[1751312067988,3.97813659,2513.8,2513.4,0.1984]
[1751312068158,0.93356694,2513.9,2513.4,0.1984]
[1751312068358,4.71312794,2513.9,2513.6,0.1984]
[1751312069286,10.0,2514.2,2513.8,0.1984]
[1751312069459,3.97789945,2513.9,2513.8,0.1984]
[1751312069660,13.97741745,2514.2,2513.5,0.4847]
[1751312069860,3.97798538,2513.9,2513.7,0.1984]
[1751312070167,4.79339721,2513.9,2513.7,0.1984]
[1751312070368,3.97804121,2513.8,2513.7,0.1984]
[1751312071885,0.81541183,2513.9,2513.7,0.1984]
[1751312072081,3.9777516,2514.0,2513.7,0.1984]
[1751312072381,4.17604469,2514.1,2513.7,0.1984]
[1751312072581,4.17604469,2514.1,2513.8,3.97793651]
[1751312072582,0.1984,2514.1,2513.8,3.97793651]
[1751312072898,3.97756652,2514.1,2514.0,0.1984]
[1751312073193,4.45444317,2514.1,2514.0,0.1984]
[1751312073891,0.47687665,2514.1,2514.0,0.1984]
[1751312074100,3.97756652,2514.1,2514.0,0.1984]
[1751312074690,0.7912,2514.3,2514.0,0.1984]
[1751312074891,3.97741391,2514.2,2514.0,0.1984]
[1751312076003,3.97756652,2514.1,2514.0,0.1984]
[1751312076190,0.7912,2514.3,2513.5,6.746]
[1751312076365,3.97786199,2514.0,2513.8,0.1984]
[1751312076562,3.97788297,2513.9,2513.8,0.1984]
[1751312078999,3.9786743,2513.4,2513.3,0.3]
[1751312079290,0.8031,2513.9,2513.3,0.3]
[1751312079291,3.97854106,2513.5,2513.3,0.3]
[1751312079660,4.1766749,2513.7,2513.3,0.3]
[1751312079877,3.97812993,2513.8,2513.4,4.17705944]
[1751312080078,3.97812993,2513.8,2513.6,0.1984]
[1751312080382,3.97812993,2513.8,2513.3,0.4984]
[1751312080383,3.97858485,2513.5,2513.3,0.4984]
[1751312080909,3.97841301,2513.6,2513.3,0.4984]
[1751312081105,3.97853905,2513.5,2513.3,0.4984]
[1751312082112,3.97821535,2513.7,2513.3,0.4984]
[1751312082414,3.97843322,2513.6,2513.3,0.4984]
[1751312082578,0.81549469,2513.6,2513.3,0.4984]
[1751312082773,4.7514743,2513.4,2513.3,0.3]
[1751312083411,3.97914925,2513.1,2513.0,0.1984]
[1751312083776,3.97902516,2513.2,2512.7,0.1984]
[1751312083777,0.1984,2513.2,2512.7,0.1984]
[1751312083976,3.97945111,2513.0,2512.7,0.1984]
[1751312084185,3.97889764,2513.3,2512.8,3.97961565]
[1751312084413,3.97902897,2513.2,2512.9,0.1984]
[1751312084589,3.97922229,2513.1,2512.9,0.1984]
[1751312085294,3.9793076,2513.0,2512.9,0.1984]
[1751312085489,3.9792419,2513.1,2512.9,0.1984]
[1751312085690,4.7750703,2513.1,2512.9,0.1984]
[1751312086290,0.7958284,2513.1,2512.9,0.1984]
[1751312086494,10.72152929,2513.5,2512.5,4.46472965]
[1751312086495,0.754,2513.6,2513.0,0.4847]
[1751312086795,6.1160493,2513.8,2513.3,3.9787193]
[1751312087003,0.37138491,2513.7,2513.5,0.1984]
[1751312088281,0.37138491,2513.7,2513.6,4.46305773]
[1751312088520,0.37138491,2514.1,2514.0,3.97772474]
[1751312088728,0.37138491,2514.4,2514.0,4.46240629]
[1751312088882,2.54418739,2514.6,2514.4,3.97709195]
[1751312088883,0.37138491,2514.5,2514.4,3.97709195]
[1751312089300,3.97634509,2514.9,2514.4,4.17549195]
[1751312089591,0.49801451,2514.8,2514.4,4.17549195]
[1751312089789,14.47447453,2514.8,2514.4,4.17549195]
[1751312090513,4.47447453,2514.8,2514.4,4.17549195]
[1751312090684,4.47447453,2514.8,2514.4,0.1984]
[1751312091087,3.97665465,2514.7,2514.4,0.1984]
[1751312091311,0.84511292,2514.6,2514.4,0.1984]
[1751312091902,4.76113378,2514.5,2514.0,0.4847]
[1751312092107,4.76113378,2514.5,2514.2,0.1984]
[1751312093024,0.7842,2514.5,2514.2,0.1984]
[1751312093392,4.76114469,2514.5,2514.2,0.1984]
[1751312094208,4.76120287,2514.5,2514.2,0.1984]
[1751312094409,3.97710287,2514.4,2514.2,0.1984]
[1751312094595,1.67783133,2514.5,2514.2,0.1984]
[1751312094596,3.97725012,2514.3,2514.2,0.1984]
[1751312094798,3.97755033,2514.2,2513.9,0.1984]
[1751312095221,3.97757208,2514.1,2513.9,0.1984]
[1751312095420,3.97772474,2514.0,2513.9,0.1984]
[1751312095626,4.77324118,2514.0,2513.9,0.1984]
[1751312095822,5.58934118,2514.0,2513.5,11.20221295]
[1751312096124,0.8161,2514.0,2513.7,0.1984]
[1751312096732,3.97732546,2514.3,2513.8,3.97792602]
[1751312096931,3.97732546,2514.3,2513.9,4.17626122]
[1751312097229,10.9629,2514.4,2514.0,3.97764686]
[1751312097230,10.7645,2514.4,2514.0,3.97764686]
[1751312097420,4.87063533,2514.5,2514.1,0.1984]
[1751312097719,0.58335353,2514.4,2514.1,4.17596651]
[1751312097932,0.58335353,2514.4,2514.1,0.1984]
[1751312098294,4.56045351,2514.4,2514.1,0.1984]
[1751312098501,0.58335353,2514.4,2514.1,0.1984]
[1751312098708,0.58335353,2514.4,2514.1,4.17594697]
[1751312099102,4.56044897,2514.4,2514.1,0.1984]
[1751312099400,0.58335353,2514.4,2514.1,4.17594107]
[1751312099702,3.97664466,2514.7,2514.3,0.1984]
[1751312099903,3.97664466,2514.7,2514.1,3.9774954]
[1751312099904,3.97680947,2514.6,2514.5,0.1984]
[1751312100413,3.97703099,2514.5,2514.0,0.4847]
[1751312100603,3.9770115,2514.5,2514.3,0.1984]
[1751312101005,3.97709195,2514.4,2514.3,0.1984]
[1751312101331,5.5490023,2514.4,2513.9,3.97780409]
[1751312101524,5.5490023,2514.4,2514.1,0.1984]
[1751312101525,3.97734184,2514.3,2514.1,0.1984]
[1751312101896,0.79541035,2514.4,2513.8,11.19873502]
[1751312102127,3.97725012,2514.3,2514.2,0.1984]
[1751312102423,3.97715295,2514.4,2514.2,0.1984]
[1751312102631,14.80548177,2514.7,2514.2,0.1984]
[1751312102794,3.9768378,2514.6,2514.2,0.1984]
[1751312102994,3.9769366,2514.5,2514.2,0.1984]
[1751312103195,0.39769366,2514.4,2514.2,0.1984]
[1751312103611,4.37482306,2514.4,2514.2,0.1984]
[1751312104336,0.39769366,2514.4,2514.2,0.1984]
[1751312106233,3.97678147,2514.6,2514.2,0.1984]
[1751312106432,3.97678147,2514.6,2514.2,4.17579785]
[1751312106626,3.97678147,2514.6,2514.2,4.17580308]
[1751312106829,3.97702667,2514.5,2514.2,0.1984]
[1751312108629,14.80545181,2514.7,2514.2,0.1984]
[1751312108630,3.97709897,2514.4,2514.2,0.1984]
[1751312108834,0.3977099,2514.3,2514.2,0.1984]
[1751312109232,0.7596,2514.2,2513.8,0.4847]
[1751312109534,0.7596,2514.2,2514.0,0.1984]
[1751312110231,4.73701129,2514.2,2514.0,0.1984]
[1751312110433,4.37504161,2514.3,2514.0,0.1984]
[1751312111004,4.51289825,2514.2,2514.0,0.1984]
[1751312111429,4.51290039,2514.2,2514.0,0.1984]
[1751312111841,4.51288142,2514.2,2514.0,0.1984]
[1751312112505,3.97756652,2514.1,2514.0,0.1984]
[1751312112731,3.97790437,2513.9,2513.7,0.1984]
[1751312112917,3.97763617,2514.1,2513.7,0.1984]
[1751312113237,4.84665063,2514.0,2513.7,0.1984]
[1751312113902,0.86890522,2514.0,2513.7,0.1984]
[1751312114108,0.86890522,2514.0,2513.7,4.17657818]
[1751312114650,0.73386416,2514.2,2513.7,4.17657818]
[1751312114812,0.53546416,2514.2,2513.9,0.1984]
[1751312115150,3.9775701,2514.1,2513.9,0.1984]
[1751312115311,4.51296051,2514.2,2513.9,0.1984]
[1751312115515,0.53546416,2514.2,2513.9,0.1984]
[1751312115743,0.1984,2514.3,2514.0,3.97772102]
[1751312116935,0.1984,2514.6,2514.1,0.1984]
[1751312117135,0.1984,2514.8,2514.4,0.1984]
[1751312117341,4.17493541,2514.8,2514.4,0.1984]
[1751312117546,0.41749354,2514.7,2514.4,0.1984]
[1751312118126,0.41749354,2514.7,2514.4,4.1754755]
[1751312118330,0.1984,2514.8,2514.6,3.97677563]
[1751312118515,0.7987,2515.0,2514.7,0.1984]
[1751312118715,11.688,2515.1,2514.7,4.17493465]
[1751312119247,15.66399548,2515.1,2514.7,4.17493465]
[1751312119419,15.66399548,2515.1,2514.7,0.1984]
[1751312119420,3.9761662,2515.0,2514.7,0.1984]
[1751312119623,2.06372617,2515.0,2514.7,0.1984]
[1751312120151,2.131,2515.1,2514.9,3.97628731]
[1751312120354,2.3294,2515.6,2515.2,3.97568885]
[1751312120556,2.131,2515.6,2515.3,0.1984]
[1751312121367,6.10625643,2515.6,2515.3,0.1984]
[1751312121654,6.10625643,2515.6,2514.9,6.728]
[1751312121655,0.7923,2515.4,2514.9,6.728]
[1751312121955,3.97598505,2515.1,2515.0,0.1984]
[1751312122812,3.97685356,2514.6,2514.3,1.16447698]
[1751312123011,3.97685356,2514.6,2514.5,0.1984]
[1751312123629,3.97712016,2514.4,2514.1,6.726]
[1751312123824,3.97712016,2514.4,2514.3,0.1984]
[1751312124024,3.97768244,2514.1,2514.0,0.1984]
[1751312125220,3.97749029,2514.2,2514.0,0.1984]
[1751312125642,3.97756652,2514.1,2514.0,0.1984]
[1751312126117,3.97743764,2514.2,2514.0,0.1984]
[1751312126118,3.9774918,2514.2,2514.0,0.1984]
[1751312126530,3.97756652,2514.1,2514.0,0.1984]
[1751312128338,3.977503,2514.2,2514.0,0.1984]
[1751312128567,3.97742577,2514.2,2514.0,0.1984]
[1751312128747,3.97751873,2514.2,2514.0,0.1984]
[1751312129925,3.97756652,2514.1,2514.0,0.1984]
[1751312130452,3.97749339,2514.2,2514.0,0.1984]
[1751312131076,4.74305659,2514.3,2514.0,0.1984]
[1751312131077,4.74312988,2514.3,2514.0,0.1984]
[1751312131229,3.97743225,2514.2,2514.0,0.1984]
[1751312132574,2.3224,2514.4,2514.0,0.1984]
[1751312132777,6.10116389,2514.4,2514.1,0.1984]
[1751312133087,6.10116389,2514.4,2514.3,0.1984]
[1751312133088,2.124,2514.4,2514.3,0.1984]
[1751312133437,4.17516301,2514.7,2514.3,0.1984]
[1751312133644,14.79195939,2514.6,2514.3,0.1984]
[1751312133939,0.8151727,2514.6,2514.3,0.1984]
[1751312134151,3.97709195,2514.4,2514.3,0.1984]
[1751312134367,0.8151727,2514.6,2514.3,0.1984]
[1751312134571,6.91510232,2514.9,2514.3,0.1984]
[1751312134740,6.91510232,2514.9,2514.5,0.1984]
[1751312134741,3.97646862,2514.8,2514.5,0.1984]
[1751312135741,3.97663233,2514.7,2514.5,0.1984]
[1751312136558,4.78489665,2514.6,2513.9,7.2067]
[1751312136759,4.78489665,2514.6,2514.4,0.1984]
[1751312136760,3.97701338,2514.5,2514.4,0.1984]
[1751312137163,3.97712487,2514.4,2514.2,0.1984]
[1751312137340,3.97701821,2514.5,2514.2,0.1984]
[1751312137767,3.97710076,2514.4,2514.2,0.1984]
[1751312138469,3.97725012,2514.3,2514.2,0.1984]
[1751312142349,0.8081,2514.6,2513.7,0.4847]
[1751312142556,3.97779313,2514.0,2513.9,0.1984]
[1751312143357,4.76493871,2514.2,2513.9,0.1984]
[1751312143660,4.76481297,2514.2,2513.9,0.1984]
[1751312143956,3.97772474,2514.0,2513.9,0.1984]
[1751312144154,3.97800689,2513.9,2513.5,1.64917698]
[1751312144484,3.9779663,2513.9,2513.7,0.1984]
[1751312144654,3.97781745,2514.0,2513.7,0.1984]
[1751312144992,3.97788297,2513.9,2513.7,0.1984]
[1751312145195,3.97780717,2514.0,2513.7,0.1984]
[1751312145358,4.87193086,2514.0,2513.7,0.1984]
[1751312145560,3.97800559,2513.9,2513.7,0.1984]
[1751312145885,3.97780492,2514.0,2513.7,0.1984]
[1751312146185,3.97790808,2513.9,2513.7,0.1984]
[1751312146379,3.97804121,2513.8,2513.7,0.1984]
[1751312146887,3.97796327,2513.9,2513.7,0.1984]
[1751312147102,3.97804121,2513.8,2513.3,4.46344786]
[1751312147267,3.97804121,2513.8,2513.1,1.54491897]
[1751312147268,3.97819946,2513.7,2513.1,1.64917698]
[1751312147477,3.97914925,2513.1,2513.0,0.1984]
[1751312147660,4.79174925,2513.1,2513.0,0.1984]
[1751312148011,4.79174925,2513.1,2512.4,9.52007846]
[1751312148012,3.97962432,2512.8,2512.6,1.16447698]
[1751312148288,3.98025792,2512.4,2512.3,1.16447698]
[1751312148491,3.98025792,2512.4,2512.1,1.17447698]
[1751312148492,3.98041635,2512.3,2512.1,1.17447698]
[1751312148693,12.124,2512.4,2512.1,1.17447698]
[1751312148887,12.124,2512.4,2512.2,1.16447698]
[1751312149103,2.124,2512.4,2512.2,1.16447698]
[1751312149261,0.1984,2512.6,2512.3,3.98028834]
[1751312149593,10.0,2512.9,2512.5,0.1984]
[1751312149793,3.97907854,2513.2,2512.6,3.97982227]
[1751312149980,3.20047734,2513.1,2512.6,0.1984]
[1751312150182,2.3234,2513.1,2512.7,3.97977118]
[1751312150494,6.30255022,2513.1,2512.6,4.17826305]
[1751312150875,2.3234,2513.1,2512.6,4.17826305]
[1751312151094,2.125,2513.1,2512.8,3.97962165]
[1751312151273,10.69662299,2513.5,2512.9,3.97932799]
[1751312151274,12.125,2513.4,2512.9,3.97932799]
[1751312151486,17.69325145,2513.4,2513.0,0.1984]
[1751312151692,3.71456975,2513.4,2513.0,4.17769613]
[1751312151875,7.69325148,2513.4,2513.0,0.1984]
[1751312152070,3.97901016,2513.2,2513.0,0.1984]
[1751312152395,3.97890429,2513.3,2513.0,0.1984]
[1751312152567,0.7693474,2513.2,2513.0,0.1984]
[1751312152762,3.71456975,2513.4,2513.0,4.1776465]
[1751312153098,2.125,2513.4,2513.0,4.17766284]
[1751312153294,6.10370238,2513.4,2513.0,0.1984]
[1751312153665,0.1984,2513.5,2513.0,0.1984]
[1751312153893,3.97858666,2513.5,2513.2,0.1984]
[1751312154200,1.7956961,2513.4,2513.2,0.1984]
[1751312154387,10.0,2513.6,2513.2,3.97886459]
[1751312154588,10.0,2513.6,2513.3,0.1984]
[1751312155692,13.97837314,2513.6,2513.3,0.1984]
[1751312157595,10.0,2513.6,2513.3,0.1984]
[1751312157790,3.97892053,2513.3,2513.1,0.1984]
[1751312158005,3.97876415,2513.4,2513.1,0.1984]
[1751312158324,1.81557947,2513.4,2513.1,0.1984]
[1751312158512,0.1984,2513.5,2513.1,0.1984]
[1751312158825,4.17693664,2513.5,2513.1,0.1984]
[1751312159525,4.17697034,2513.5,2513.1,0.1984]
[1751312160127,0.1984,2513.5,2513.1,0.1984]
[1751312160506,4.17691822,2513.5,2513.1,0.1984]
[1751312160827,0.1984,2513.5,2513.1,0.1984]
[1751312161329,3.97872068,2513.4,2513.1,0.1984]
[1751312161697,3.97872146,2513.4,2513.1,0.1984]
[1751312161931,0.7649,2513.3,2513.1,0.1984]
[1751312162132,4.74374662,2513.3,2512.7,0.4847]
[1751312162333,3.97899092,2513.2,2512.9,0.1984]
[1751312162530,4.87109347,2513.2,2512.9,0.1984]
[1751312163207,3.97928226,2513.1,2512.4,4.46485518]
[1751312163412,3.97928226,2513.1,2512.7,0.1984]
[1751312163413,0.1984,2513.1,2512.7,0.1984]
[1751312163608,4.1776177,2513.1,2512.7,0.1984]
[1751312164223,0.1984,2513.1,2512.7,0.1984]
[1751312164611,0.8083,2512.9,2512.7,0.1984]
[1751312164929,0.1984,2513.1,2512.7,0.1984]
[1751312165137,2.118,2513.3,2512.8,3.97955569]
[1751312165359,7.53568879,2513.3,2512.8,0.1984]
[1751312165500,7.53568879,2513.3,2512.8,4.17797034]
[1751312165501,11.43884818,2513.3,2512.8,4.17797034]
[1751312165700,1.49805288,2513.5,2512.9,0.4847]
[1751312165906,3.97835784,2513.6,2512.9,4.46409891]
[1751312166097,12.118,2513.7,2513.3,0.1984]
[1751312166098,3.97853464,2513.5,2513.3,0.1984]
[1751312166634,16.29467387,2513.7,2513.3,0.1984]
[1751312166838,3.97851689,2513.5,2513.3,0.1984]
[1751312167430,3.97845352,2513.6,2513.3,0.1984]
[1751312167637,6.00583867,2513.5,2513.3,0.1984]
[1751312167798,2.02731274,2513.5,2513.3,0.1984]
[1751312168000,6.00583555,2513.5,2513.3,0.1984]
[1751312168230,3.9786743,2513.4,2513.3,0.1984]
[1751312168431,3.97887818,2513.3,2512.9,0.4847]
[1751312168602,3.97887818,2513.3,2512.9,0.6831]
[1751312168797,5.07733549,2513.3,2512.9,0.6831]
[1751312168998,3.979059,2513.2,2512.9,0.1984]
[1751312169233,3.97922799,2513.1,2512.9,0.1984]
[1751312169399,3.97925256,2513.1,2512.9,0.1984]
[1751312169602,3.9793076,2513.0,2512.9,0.1984]
[1751312169809,0.79583463,2513.0,2512.9,0.1984]
[1751312170010,3.9796361,2512.8,2512.6,0.1984]
[1751312170440,3.9801026,2512.5,2512.1,0.4947]
[1751312170622,3.9797827,2512.7,2512.1,0.4947]
[1751312170941,1.06917827,2512.7,2512.2,3.98057339]
[1751312171145,5.04897143,2512.7,2512.4,0.1984]
[1751312171307,1.06917827,2512.7,2512.4,0.1984]
[1751312171504,5.04898792,2512.7,2512.4,0.1984]
[1751312171704,3.98057479,2512.2,2512.1,0.01]
[1751312172015,0.39805748,2512.2,2512.1,0.01]
[1751312172744,6.89371766,2512.5,2512.1,0.01]
[1751312173041,6.89371766,2512.5,2512.1,0.2084]
[1751312173042,7.09211766,2512.5,2512.1,0.2084]
[1751312173209,7.09213742,2512.5,2512.1,0.2084]
[1751312173620,3.112,2512.5,2512.1,0.2084]
[1751312173914,7.09213124,2512.5,2512.1,0.2084]
[1751312174117,5.08747825,2512.4,2512.1,0.2084]
[1751312174626,1.10721519,2512.4,2512.1,0.2084]
[1751312175034,4.97418659,2512.5,2512.1,0.2084]
[1751312175231,0.994,2512.5,2512.1,0.2084]
[1751312175737,4.97411687,2512.5,2512.1,0.2084]
[1751312175953,0.994,2512.5,2512.1,0.2084]
[1751312176105,4.97416518,2512.5,2512.1,0.2084]
[1751312176305,0.70921652,2512.4,2512.1,0.2084]
[1751312177105,4.68947617,2512.4,2512.1,0.2084]
[1751312177301,0.70921652,2512.4,2512.1,0.2084]
[1751312179023,0.1984,2512.5,2512.1,4.18902919]
[1751312179223,3.97978656,2512.7,2512.2,4.46520561]
[1751312179456,0.1984,2512.8,2512.4,0.1984]